bitfinex/quotes_ETHUSD_20250923
["timestamp","ask_amount","ask_price","bid_price","bid_amount"]
[1758611718889,12.12691262,4211.3,4211.2,0.004]
[1758611719089,15.86206485,4211.3,4211.2,0.004]
[1758611719667,17.47992075,4211.3,4211.2,0.004]
[1758611720100,17.57511884,4211.3,4211.2,0.004]
[1758611720908,17.57511884,4211.3,4210.8,0.004]
[1758611721112,15.12713818,4210.9,4210.8,0.004]
[1758611721416,15.86229041,4210.9,4210.8,0.004]
[1758611721588,17.46411247,4210.9,4210.8,0.004]
[1758611721900,18.12821247,4210.9,4210.8,0.004]
[1758611723009,7.1991416,4210.9,4210.8,0.004]
[1758611723505,7.8632416,4210.9,4210.8,0.004]
[1758611726185,7.86229025,4210.9,4210.8,0.004]
[1758611726503,7.86229025,4210.9,4210.3,14.504]
[1758611726504,8.3728451,4210.9,4210.3,14.504]
[1758611726709,15.1274202,4210.4,4210.3,0.004]
[1758611726905,15.34899916,4210.4,4210.3,0.004]
[1758611727299,15.58219916,4210.4,4210.3,0.004]
[1758611727493,16.01309916,4210.4,4210.3,0.004]
[1758611727696,17.61492122,4210.4,4210.3,0.004]
[1758611727897,15.23984997,4210.4,4210.3,0.004]
[1758611728108,16.95082122,4210.4,4210.3,0.004]
[1758611728581,17.18402122,4210.4,4210.3,0.004]
[1758611728782,17.61492122,4210.4,4210.3,0.004]
[1758611729583,17.18402122,4210.4,4210.3,0.004]
[1758611729922,17.61492122,4210.4,4210.3,0.004]
[1758611730686,14.58737101,4210.4,4210.3,0.004]
[1758611730887,14.35417101,4210.4,4210.3,0.004]
[1758611731086,16.72924226,4210.4,4210.3,0.004]
[1758611731832,14.35417101,4210.4,4210.3,0.004]
[1758611732691,16.72924226,4210.4,4210.3,0.004]
[1758611733205,3.0,4210.4,4210.3,0.004]
[1758611733406,3.1184,4210.4,4210.3,0.004]
[1758611736714,3.1184,4210.4,4210.3,0.251]
[1758611737531,3.1184,4210.4,4210.3,14.504]
[1758611737692,5.72667125,4210.4,4210.3,14.504]
[1758611737893,5.49347125,4210.4,4210.3,14.504]
[1758611738095,3.3516,4210.4,4210.3,14.504]
[1758611738431,5.72667125,4210.4,4210.3,14.504]
[1758611738868,5.49347125,4210.4,4210.3,14.504]
[1758611739039,7.77795488,4210.4,4210.3,0.004]
[1758611739205,7.56854978,4210.4,4210.3,0.004]
[1758611739798,8.23264978,4210.4,4210.3,0.004]
[1758611742651,2.37518407,4210.2,4209.4,14.504]
[1758611742945,15.12787156,4209.6,4209.4,0.004]
[1758611743115,15.86046587,4209.6,4209.4,0.004]
[1758611743316,16.52456587,4209.6,4209.4,0.004]
[1758611743528,16.01346646,4209.6,4209.4,0.004]
[1758611743732,18.36346045,4209.6,4209.4,0.004]
[1758611743941,18.45869843,4209.6,4209.4,0.004]
[1758611746613,5.49397904,4209.5,4209.4,0.004]
[1758611746908,6.22657688,4209.5,4209.4,0.004]
[1758611747141,7.63344133,4209.5,4209.4,0.004]
[1758611747844,7.63344133,4209.5,4209.1,0.024]
[1758611747845,2.37574836,4209.2,4209.1,0.024]
[1758611748044,12.86127269,4209.2,4209.1,0.024]
[1758611748248,15.86127269,4209.2,4209.1,0.024]
[1758611748417,16.55087269,4209.2,4209.1,0.024]
[1758611748617,18.38976374,4209.2,4209.1,0.024]
[1758611751430,17.92846374,4209.2,4209.1,0.024]
[1758611753249,5.57206643,4209.2,4209.1,0.2736]
[1758611753425,3.73317538,4209.2,4209.1,0.2736]
[1758611754233,3.73317538,4209.2,4209.1,0.024]
[1758611755952,6.10892374,4209.2,4209.1,0.024]
[1758611756254,7.02880621,4209.2,4209.1,0.024]
[1758611756455,4.65305785,4209.2,4209.1,0.024]
[1758611756848,16.78115516,4209.2,4209.1,0.024]
[1758611757249,17.47075516,4209.2,4209.1,0.024]
[1758611758536,17.00945516,4209.2,4209.1,0.024]
[1758611758859,14.4054068,4209.2,4209.1,0.024]
[1758611759251,16.78115516,4209.2,4209.1,0.024]
[1758611760528,14.4054068,4209.2,4209.1,0.024]
[1758611760829,3.73317538,4209.2,4209.1,0.2736]
[1758611761167,3.22207244,4209.2,4209.1,0.6629]
[1758611761324,3.22207244,4209.2,4209.1,0.2736]
[1758611763136,5.5978208,4209.2,4209.1,0.2736]
[1758611763340,7.71523621,4209.2,4209.1,0.024]
[1758611763653,8.40483621,4209.2,4209.1,0.024]
[1758611764550,7.94353621,4209.2,4209.1,0.024]
[1758611764731,7.71523621,4209.2,4209.1,0.024]
[1758611764930,7.71525987,4209.2,4209.1,0.024]
[1758611766885,3.22207244,4209.2,4209.1,0.6629]
[1758611767099,0.22207244,4209.2,4209.1,0.024]
[1758611767256,0.22207244,4209.2,4209.1,0.2736]
[1758611768195,0.22207244,4209.2,4209.1,14.524]
[1758611768989,2.5978208,4209.2,4209.1,14.524]
[1758611769219,8.39733033,4209.2,4209.1,0.024]
[1758611770661,24.68163159,4209.2,4209.1,0.024]
[1758611771293,25.32240899,4209.2,4209.1,0.024]
[1758611771676,25.32271023,4209.2,4209.1,0.024]
[1758611772079,17.1805596,4209.2,4209.1,0.024]
[1758611772279,16.5397822,4209.2,4209.1,0.024]
[1758611774462,17.18059597,4209.2,4209.1,0.024]
[1758611775587,16.5397822,4209.2,4209.1,0.024]
[1758611775898,17.18045432,4209.2,4209.1,0.024]
[1758611776480,16.49145923,4209.2,4209.1,0.024]
[1758611777185,16.72765923,4209.2,4209.1,0.024]
[1758611777375,8.3493086,4209.2,4209.1,0.024]
[1758611777715,16.49145923,4209.2,4209.1,0.024]
[1758611778705,17.17265923,4209.2,4209.1,0.024]
[1758611779407,9.0305086,4209.2,4209.1,0.024]
[1758611779575,16.49145923,4209.2,4209.1,0.024]
[1758611779778,17.17265923,4209.2,4209.1,0.024]
[1758611780315,16.49145923,4209.2,4209.1,0.024]
[1758611781179,15.85081579,4209.2,4209.1,0.024]
[1758611781992,15.85081579,4209.2,4209.1,0.2708]
[1758611782510,15.85081579,4209.2,4209.1,0.024]
[1758611784382,16.08701579,4209.2,4209.1,0.024]
[1758611784618,16.53201579,4209.2,4209.1,0.024]
[1758611784915,15.85081579,4209.2,4209.1,0.024]
[1758611786524,15.85081579,4209.2,4209.1,14.524]
[1758611788789,7.70854288,4209.2,4209.1,14.524]
[1758611789000,6.11051451,4209.2,4209.1,14.524]
[1758611792507,6.11051451,4209.2,4209.1,14.7708]
[1758611792833,6.11051451,4209.2,4209.1,14.524]
[1758611793633,6.11051451,4209.2,4209.1,0.024]
[1758611793945,3.73476615,4209.2,4209.1,15.1601]
[1758611794400,3.73476615,4209.2,4209.1,14.7708]
[1758611795000,0.73476615,4209.2,4209.1,15.1601]
[1758611795306,0.2222514,4209.2,4209.1,15.1601]
[1758611798942,0.2222514,4209.2,4209.1,19.28951091]
[1758611799150,0.1194,4209.4,4209.1,19.28949998]
[1758611799151,0.001,4209.4,4209.1,19.28949998]
[1758611799339,0.001,4209.4,4209.2,0.65985748]
[1758611799729,0.001,4209.4,4209.3,3.01179192]
[1758611800460,0.001,4209.4,4209.3,0.6361]
[1758611800655,0.001,4209.4,4209.3,2.5674208]
[1758611800840,0.001,4209.4,4209.3,4.94311272]
[1758611801856,0.001,4209.4,4209.3,2.5674208]
[1758611802054,0.001,4209.4,4209.3,4.94311272]
[1758611802628,0.001,4209.4,4209.3,3.01179192]
[1758611802938,0.001,4209.4,4209.3,17.51179192]
[1758611806754,0.001,4209.4,4209.3,15.1361]
[1758611808572,0.001,4209.4,4209.3,14.5]
[1758611813549,0.2266,4209.4,4209.3,14.5]
[1758611813751,0.001,4209.4,4209.3,16.87569192]
[1758611813956,0.001,4209.4,4209.3,18.65602927]
[1758611815205,0.001,4209.4,4209.3,18.26672927]
[1758611816575,0.001,4209.4,4209.3,18.65602927]
[1758611817100,0.001,4209.4,4209.3,18.26672927]
[1758611820203,0.001,4209.4,4209.3,18.65602927]
[1758611820360,0.001,4209.4,4209.3,18.77442927]
[1758611821689,0.001,4209.4,4209.3,19.56642927]
[1758611822720,0.001,4209.4,4209.3,22.56642927]
[1758611822927,0.001,4210.1,4210.0,2.37529691]
[1758611823247,0.001,4210.1,4210.0,3.66611719]
[1758611823383,0.001,4210.5,4210.4,6.16707125]
[1758611823384,1e-08,4210.5,4210.4,6.16707125]
[1758611823589,1e-08,4210.5,4210.4,20.78547125]
[1758611823905,1e-08,4210.5,4210.4,21.29787125]
[1758611824790,1e-08,4210.5,4210.4,19.87507125]
[1758611825124,1e-08,4210.5,4210.4,22.34159678]
[1758611825348,1e-08,4210.5,4210.4,22.10009678]
[1758611825529,1e-08,4210.5,4210.4,22.34159678]
[1758611827329,1e-08,4210.5,4210.4,22.73089678]
[1758611828230,1e-08,4210.5,4210.4,22.10009678]
[1758611829830,1e-08,4210.5,4210.4,22.34159678]
[1758611831919,1e-08,4210.5,4210.4,19.10009678]
[1758611832119,0.69870001,4210.5,4210.4,19.10009678]
[1758611832309,1e-08,4210.5,4210.4,19.10009678]
[1758611832515,0.22560001,4210.5,4210.4,19.10009678]
[1758611833451,1e-08,4210.5,4210.4,19.10009678]
[1758611833952,1e-08,4210.5,4210.4,19.21849678]
[1758611834646,1e-08,4210.5,4210.4,19.45999678]
[1758611834948,1e-08,4210.5,4210.4,19.10009678]
[1758611835127,0.69870001,4210.5,4210.4,19.10009678]
[1758611836646,0.69870001,4210.5,4210.4,16.87507125]
[1758611837790,1e-08,4210.5,4210.4,16.87507125]
[1758611838240,0.22970001,4210.5,4210.4,16.87507125]
[1758611838673,0.67580001,4210.5,4210.4,16.87507125]
[1758611839076,1e-08,4210.5,4210.4,16.87507125]
[1758611839384,1e-08,4210.5,4210.4,18.80009678]
[1758611840795,1e-08,4210.5,4210.4,19.41779678]
[1758611841644,1e-08,4210.5,4210.4,20.20979678]
[1758611842057,1e-08,4210.5,4210.4,19.59209678]
[1758611842245,1e-08,4210.5,4210.4,19.82049678]
[1758611842465,1e-08,4210.5,4210.4,20.20979678]
[1758611842980,1e-08,4210.5,4210.4,18.80009678]
[1758611844177,0.22970001,4210.5,4210.4,18.80009678]
[1758611844747,1e-08,4210.5,4210.4,18.80009678]
[1758611844994,1e-08,4210.5,4210.4,18.91849678]
[1758611845282,1e-08,4210.5,4210.4,19.53619678]
[1758611845650,1e-08,4210.5,4210.4,19.14689678]
[1758611847049,1e-08,4210.5,4210.4,19.93889678]
[1758611847250,1e-08,4210.5,4210.4,20.32819678]
[1758611853091,1e-08,4210.5,4210.4,19.93889678]
[1758611853293,1e-08,4210.5,4210.4,18.91849678]
[1758611853491,0.67580001,4210.5,4210.4,18.91849678]
[1758611853741,0.22970001,4210.5,4210.4,18.91849678]
[1758611853896,1e-08,4210.5,4210.4,18.91849678]
[1758611856795,0.22970001,4210.5,4210.4,18.91849678]
[1758611856980,1e-08,4210.5,4210.4,18.91849678]
[1758611860598,1e-08,4210.5,4210.4,19.14689678]
[1758611860832,1e-08,4210.5,4210.4,18.91849678]
[1758611866239,0.66260001,4210.5,4210.4,18.91849678]
[1758611866936,1e-08,4210.5,4210.4,18.91849678]
[1758611867136,1e-08,4210.5,4210.4,19.15879678]
[1758611867746,1e-08,4210.5,4210.4,18.91849678]
[1758611869676,1e-08,4210.5,4210.4,19.71049678]
[1758611869950,1e-08,4210.5,4210.4,23.34009678]
[1758611870513,1e-08,4210.5,4210.4,23.4352489]
[1758611874009,1e-08,4210.5,4210.4,22.8056489]
[1758611874244,1e-08,4210.5,4210.4,23.0459489]
[1758611874819,1e-08,4210.5,4210.4,23.4352489]
[1758611876131,1e-08,4210.5,4210.4,23.0459489]
[1758611880684,1e-08,4210.5,4210.4,23.4352489]
[1758611880822,1e-08,4210.5,4210.4,23.0459489]
[1758611881017,1e-08,4210.5,4210.4,22.8056489]
[1758611881445,0.66260001,4210.5,4210.4,21.91849678]
[1758611881748,0.66260001,4210.5,4210.4,22.71049678]
[1758611882339,0.001,4211.0,4210.4,22.71049678]
[1758611882340,0.001,4211.0,4210.9,2.37478923]
[1758611882528,0.001,4211.0,4210.9,2.9681548]
[1758611882938,0.001,4211.0,4210.9,17.49190269]
[1758611883139,0.001,4211.0,4210.9,17.4681548]
[1758611883637,0.001,4211.0,4210.9,21.5004548]
[1758611883963,0.001,4211.0,4210.9,21.9526548]
[1758611884524,0.001,4211.0,4210.9,21.5004548]
[1758611885174,0.001,4211.0,4210.9,21.3820548]
[1758611885376,0.2283,4212.3,4211.8,0.792]
[1758611885724,0.2283,4212.3,4211.8,3.16628177]
[1758611885725,0.001,4212.3,4211.8,3.16628177]
[1758611885925,0.6826,4211.9,4211.8,16.87428177]
[1758611895250,0.6826,4211.9,4211.8,16.99268177]
[1758611898787,0.2473,4211.9,4211.8,16.99268177]
[1758611899483,0.6946,4211.9,4211.8,16.99268177]
[1758611900653,0.02,4211.9,4211.8,16.99268177]
[1758611901491,0.021,4211.9,4211.8,16.99268177]
[1758611902292,0.021,4211.9,4211.8,17.21808177]
[1758611902987,0.021,4211.9,4211.8,16.99268177]
[1758611903186,0.021,4211.9,4211.8,18.52291277]
[1758611903490,1e-08,4211.9,4211.8,22.19651277]
[1758611903654,1e-08,4211.9,4211.8,22.31491277]
[1758611907703,1e-08,4212.4,4212.3,3.16599995]
[1758611907870,1e-08,4212.4,4212.3,6.16599995]
[1758611908070,1e-08,4212.4,4212.3,8.10780784]
[1758611908311,1e-08,4212.4,4212.3,22.60780784]
[1758611915799,1e-08,4212.4,4212.3,21.93840784]
[1758611916208,1e-08,4212.4,4212.3,22.16380784]
[1758611916523,1e-08,4212.4,4212.3,22.60780784]
[1758611917622,1e-08,4212.4,4212.3,21.93840784]
[1758611917922,0.68950001,4212.4,4212.3,21.14640784]
[1758611918115,0.68950001,4212.4,4212.3,21.93840784]
[1758611918316,0.24220001,4212.4,4212.3,21.93840784]
[1758611920102,1e-08,4212.4,4212.3,21.93840784]
[1758611921707,0.68950001,4212.4,4212.3,21.14640784]
[1758611921909,0.68950001,4212.4,4212.3,19.99239995]
[1758611923643,0.68950001,4212.4,4212.3,16.87399995]
[1758611928062,0.24290001,4212.4,4212.3,16.87399995]
[1758611928263,0.68750001,4212.4,4212.3,16.87399995]
[1758611928831,1e-08,4212.4,4212.3,16.87399995]
[1758611929362,0.24290001,4212.4,4212.3,16.87399995]
[1758611929524,0.68750001,4212.4,4212.3,16.87399995]
[1758611930140,0.68750001,4212.4,4212.3,2.17271225]
[1758611930954,0.68750001,4212.4,4212.3,2.00643919]
[1758611931262,0.68750001,4212.4,4212.3,16.50643919]
[1758611931968,1e-08,4212.4,4212.3,16.74223919]
[1758611932265,1e-08,4212.4,4212.3,18.70113373]
[1758611932648,1e-08,4212.4,4212.3,18.46533373]
[1758611933169,1e-08,4212.4,4212.3,17.30697417]
[1758611933347,1e-08,4212.4,4212.3,17.10979995]
[1758611933549,1e-08,4212.4,4212.3,17.78439995]
[1758611933755,1e-08,4212.4,4212.3,18.49279995]
[1758611934276,1e-08,4212.4,4212.3,6.99279995]
[1758611935256,1e-08,4212.4,4212.3,21.49279995]
[1758611935462,1e-08,4212.4,4212.3,23.87949056]
[1758611936181,1e-08,4212.4,4212.3,22.72142301]
[1758611936389,1e-08,4212.4,4212.3,22.83982301]
[1758611936752,1e-08,4212.4,4212.3,22.84382301]
[1758611937072,1e-08,4212.4,4212.3,22.66565877]
[1758611938388,1e-08,4212.4,4212.3,22.80267138]
[1758611939046,1e-08,4213.1,4213.0,3.1656055]
[1758611939698,1e-08,4213.1,4213.0,17.6656055]
[1758611940252,1e-08,4213.1,4213.0,18.292]
[1758611940498,1e-08,4213.1,4213.0,20.6656055]
[1758611940659,1e-08,4213.1,4213.0,22.20111449]
[1758611940855,0.68750001,4213.1,4213.0,22.20111449]
[1758611941150,0.68750001,4213.1,4213.0,19.8736055]
[1758611941763,0.68750001,4213.1,4213.0,16.8736055]
[1758611941982,0.68750001,4213.1,4213.0,2.3736055]
[1758611942857,0.68750001,4213.1,4213.0,16.8736055]
[1758611943177,0.68750001,4213.1,4213.0,16.69542875]
[1758611945285,0.68750001,4213.1,4213.0,14.5]
[1758611945596,0.68750001,4213.1,4213.0,16.8736055]
[1758611945992,0.68750001,4213.1,4213.0,14.5]
[1758611946168,1.56902896,4213.1,4213.0,14.5]
[1758611946362,1.56902896,4213.1,4212.9,2.37361442]
[1758611946363,8.81328951,4213.1,4212.9,2.37361442]
[1758611946565,8.12578951,4213.1,4213.0,2.3736055]
[1758611946761,8.12578951,4213.1,4212.3,0.004]
[1758611946967,8.1257895,4212.7,4212.4,2.37394359]
[1758611947200,0.6875,4212.6,4212.4,2.37394359]
[1758611947495,8.1257895,4212.7,4212.6,2.37383088]
[1758611947797,8.1257895,4212.7,4212.6,16.87383088]
[1758611948096,8.8132895,4212.7,4212.6,16.87383088]
[1758611948991,8.8132895,4212.7,4212.6,16.69563631]
[1758611949193,9.69461845,4212.7,4212.6,16.69563631]
[1758611950206,8.8132895,4212.7,4212.6,14.5]
[1758611950385,8.8132895,4212.7,4212.6,2.37383088]
[1758611950588,0.6875,4212.7,4212.6,2.37383088]
[1758611950768,9.74919792,4213.0,4212.8,2.37367268]
[1758611951172,9.74919792,4213.0,4212.9,2.37366184]
[1758611951466,1.67445979,4213.0,4212.9,14.5]
[1758611951669,0.6875,4213.0,4212.9,14.5]
[1758611952196,10.43669792,4213.0,4212.9,14.5]
[1758611954266,10.43669792,4213.0,4212.3,0.004]
[1758611954582,0.1184,4212.8,4212.3,2.37799989]
[1758611954778,0.6875,4212.7,4212.3,2.37799989]
[1758611955099,0.6875,4212.6,4212.3,2.199783]
[1758611955297,0.1184,4212.8,4212.5,14.5]
[1758611955597,9.74919792,4212.6,4212.5,14.5]
[1758611955980,10.45079792,4212.6,4212.5,14.5]
[1758611957022,0.7016,4212.6,4212.5,14.5]
[1758611958419,0.1184,4212.5,4212.4,0.004]
[1758611958824,0.8228,4212.5,4212.4,0.004]
[1758611959205,1.87999979,4212.5,4212.4,0.004]
[1758611959377,1.87999979,4212.5,4212.4,14.504]
[1758611959884,0.8228,4212.5,4212.4,14.504]
[1758611960205,0.8228,4212.5,4212.0,0.004]
[1758611960393,0.1184,4212.3,4212.1,2.37409536]
[1758611960792,0.3592,4212.3,4212.2,2.37405631]
[1758611960995,0.3592,4212.3,4212.2,2.1958328]
[1758611961194,0.8228,4212.3,4212.2,16.6958328]
[1758611961410,0.1184,4212.3,4212.2,16.6958328]
[1758611961594,0.001,4213.2,4212.2,16.6958328]
[1758611961595,0.1184,4212.7,4212.5,2.37386543]
[1758611961979,0.1184,4212.7,4212.2,16.9226328]
[1758611961980,0.4636,4212.6,4212.2,14.5]
[1758611962184,0.7044,4212.5,4212.1,2.37411267]
[1758611962579,0.1184,4212.7,4212.4,14.5]
[1758611962780,0.7044,4212.6,4212.4,14.5]
[1758611962982,0.2408,4212.5,4212.4,14.5]
[1758611963226,0.2408,4212.5,4212.4,16.87394359]
[1758611963918,0.3592,4212.9,4212.4,16.87392996]
[1758611964121,0.1184,4212.9,4212.4,16.87392996]
[1758611964274,0.7044,4212.8,4212.4,16.87392996]
[1758611964528,0.7044,4212.7,4212.4,16.87392996]
[1758611966792,0.1184,4212.9,4212.5,2.37387792]
[1758611966993,0.1184,4212.9,4212.6,2.19561676]
[1758611967930,0.1184,4212.9,4212.5,2.37388228]
[1758611968724,0.8228,4212.9,4212.5,2.37388228]
[1758611968883,0.3592,4212.9,4212.5,2.37388228]
[1758611969284,0.3592,4212.9,4212.4,14.5]
[1758611969489,0.3592,4212.9,4212.5,2.3738343]
[1758611969727,0.1184,4212.9,4212.8,2.37371819]
[1758611969936,1e-08,4213.1,4212.8,14.5]
[1758611970098,1e-08,4213.1,4213.0,2.23996541]
[1758611970285,1e-08,4213.1,4213.0,2.38210146]
[1758611970625,1e-08,4213.1,4213.0,2.60890146]
[1758611971881,1e-08,4213.1,4213.0,0.1184]
[1758611972086,1e-08,4213.1,4213.0,2.4920055]
[1758611972702,1e-08,4213.1,4213.0,3.0708055]
[1758611972902,1e-08,4213.1,4213.0,17.5708055]
[1758611973098,1e-08,4213.1,4213.0,17.15902452]
[1758611973306,1e-08,4213.1,4213.0,16.93222452]
[1758611974409,0.70440001,4213.1,4213.0,16.81382452]
[1758611975130,1e-08,4213.1,4213.0,16.81382452]
[1758611975484,1e-08,4213.1,4213.0,17.04062452]
[1758611976245,1e-08,4213.1,4213.0,16.81382452]
[1758611976445,1e-08,4213.1,4213.0,19.42977862]
[1758611977220,1e-08,4213.1,4213.0,17.15902452]
[1758611977834,1e-08,4213.1,4213.0,16.93222452]
[1758611978451,1e-08,4213.1,4213.0,16.9920055]
[1758611978614,0.70440001,4213.1,4213.0,16.9920055]
[1758611979020,1e-08,4213.1,4213.0,2.4920055]
[1758611979433,0.70440001,4213.1,4212.3,0.004]
[1758611979632,0.70440001,4213.1,4212.7,2.37377453]
[1758611979959,0.70440001,4213.1,4212.6,0.1184]
[1758611979960,1e-08,4213.1,4213.0,2.3736055]
[1758611980252,1e-08,4213.1,4213.0,16.73996218]
[1758611980444,0.70440001,4213.1,4213.0,14.5]
[1758611982133,1.7617998,4213.1,4213.0,14.5]
[1758611982851,0.24080001,4213.1,4213.0,14.5]
[1758611983030,0.70440001,4213.1,4213.0,14.5]
[1758611985053,0.70440001,4213.1,4212.6,2.37381457]
[1758611985259,9.86759792,4212.9,4212.5,2.37387624]
[1758611985637,0.684,4212.8,4212.5,2.37387624]
[1758611985833,0.684,4212.7,4212.6,2.37380533]
[1758611986049,0.684,4212.7,4212.6,16.87380533]
[1758611986539,0.684,4212.7,4212.6,14.5]
[1758611987639,0.2486,4212.7,4212.6,14.5]
[1758611987953,0.684,4212.7,4212.6,14.5]
[1758611988330,0.684,4212.7,4212.4,2.37392915]
[1758611988661,0.684,4212.6,4212.4,2.37392915]
[1758611989024,0.684,4212.6,4212.5,2.37388724]
[1758611989232,0.2486,4212.8,4212.5,2.37388724]
[1758611989426,0.2486,4212.7,4212.6,14.5]
[1758611990243,0.2486,4212.7,4212.5,2.37388724]
[1758611990872,0.684,4212.7,4212.5,2.37388724]
[1758611991079,9.86759792,4212.9,4212.5,2.19567763]
[1758611991280,9.86759792,4212.9,4212.6,14.5]
[1758611991281,0.22214482,4212.8,4212.6,14.5]
[1758611991583,0.684,4212.8,4212.6,14.5]
[1758611991877,0.684,4212.7,4212.6,14.5]
[1758611993878,0.90617162,4212.7,4212.5,0.004]
[1758611994058,0.34057162,4212.6,4212.5,0.004]
[1758611994266,1.54036954,4212.6,4212.5,0.004]
[1758611994649,2.22436954,4212.6,4212.5,0.004]
[1758611994974,2.22436954,4212.6,4212.5,14.504]
[1758611996781,0.34057162,4212.6,4212.5,14.504]
[1758611997078,0.34057162,4212.6,4212.4,0.2302]
[1758611997246,0.22217162,4212.5,4212.4,0.2302]
[1758611997579,0.22217162,4212.5,4212.3,2.37798617]
[1758611997779,0.22217162,4212.4,4212.3,2.37798617]
[1758611997981,0.22217162,4212.4,4212.3,0.004]
[1758611998157,0.22217162,4212.4,4212.3,14.504]
[1758611999263,0.22197823,4212.4,4212.3,14.504]
[1758612000174,0.22197823,4212.4,4212.1,0.2302]
[1758612000368,0.22117823,4212.3,4212.0,0.004]
[1758612000575,0.8024,4212.3,4212.0,0.004]
[1758612000757,0.684,4212.2,4212.0,0.004]
[1758612001386,0.684,4212.2,4212.0,14.504]
[1758612001387,0.2486,4212.1,4212.0,14.504]
[1758612002153,0.684,4212.1,4212.0,14.504]
[1758612002570,9.74919792,4212.4,4212.0,14.504]
[1758612002774,1.65891979,4212.3,4212.0,14.504]
[1758612003187,0.1184,4212.0,4211.9,2.3742254]
[1758612003371,0.1184,4212.1,4211.9,2.6044254]
[1758612003680,0.1184,4212.1,4212.0,2.37416904]
[1758612003885,0.1184,4212.1,4212.0,2.60436904]
[1758612005384,9.74919792,4212.6,4212.2,2.37403548]
[1758612005690,0.1184,4212.3,4212.1,2.37410831]
[1758612006992,0.1184,4212.3,4212.2,2.37405631]
[1758612007159,0.1184,4212.6,4212.3,2.3739784]
[1758612007490,0.1184,4212.6,4212.3,0.2302]
[1758612008691,9.86759792,4212.6,4212.2,2.37404394]
[1758612009096,9.86759792,4212.6,4212.1,2.37409697]
[1758612009621,9.86759792,4212.6,4212.3,2.3739948]
[1758612009966,9.86759792,4212.6,4212.2,2.37404083]
[1758612010163,9.86759792,4212.6,4212.1,2.37411224]
[1758612010375,10.55159792,4212.6,4212.1,2.37411267]
[1758612010576,0.001,4212.3,4212.1,2.37411267]
[1758612010861,0.001,4212.3,4212.1,0.2302]
[1758612011196,0.001,4212.3,4212.2,2.37405631]
[1758612011374,0.001,4212.3,4212.2,2.62799687]
[1758612011576,0.001,4212.3,4212.2,2.97999687]
[1758612011898,0.001,4212.3,4212.2,2.95625631]
[1758612012264,0.001,4212.3,4212.2,2.60425631]
[1758612012460,0.22263976,4212.3,4212.2,2.60425631]
[1758612013095,0.22263976,4212.3,4212.2,2.37405631]
[1758612013296,0.001,4212.3,4212.2,3.56171599]
[1758612015295,0.22270292,4212.3,4212.2,3.56171599]
[1758612015495,0.22270292,4212.3,4212.2,3.07465631]
[1758612016702,0.001,4212.3,4212.2,3.07465631]
[1758612018070,0.001,4212.3,4212.2,2.72265631]
[1758612018505,0.001,4212.3,4212.2,3.07465631]
[1758612019086,0.001,4212.3,4212.2,2.72265631]
[1758612019478,0.001,4212.3,4212.2,3.07465631]
[1758612021235,0.001,4212.3,4212.2,3.61993599]
[1758612022431,0.001,4212.3,4212.2,3.26793599]
[1758612022637,0.001,4212.3,4212.2,0.1184]
[1758612022822,8.12613011,4212.3,4212.2,2.49245631]
[1758612023024,8.81693011,4212.3,4212.2,2.49245631]
[1758612023400,0.6918,4212.3,4212.2,2.49245631]
[1758612023603,8.81693011,4212.3,4212.2,2.49245631]
[1758612024000,8.36953011,4212.3,4212.2,2.49245631]
[1758612024802,0.001,4212.3,4212.2,2.49245631]
[1758612025334,0.0002,4212.3,4212.2,2.72485631]
[1758612025716,0.0002,4212.3,4212.2,2.49245631]
[1758612026537,0.0002,4212.3,4212.2,2.72485631]
[1758612026742,0.0002,4212.3,4212.2,3.56391232]
[1758612027402,0.0002,4212.3,4212.2,3.21191232]
[1758612029107,0.0002,4212.3,4212.2,3.00325288]
[1758612029303,0.0002,4212.3,4212.2,2.97951232]
[1758612029533,0.0002,4212.3,4212.2,3.23565288]
[1758612029735,0.0002,4212.3,4212.2,3.56391232]
[1758612029940,0.0002,4212.3,4212.2,3.58765288]
[1758612030240,0.0002,4212.3,4212.2,6.58765288]
[1758612030538,0.0002,4212.3,4212.2,6.56391232]
[1758612030742,0.0002,4212.3,4212.2,21.06391232]
[1758612032249,0.0002,4212.3,4212.2,21.85591232]
[1758612032413,0.0002,4212.3,4212.2,21.73751232]
[1758612036847,0.0002,4212.3,4212.2,21.38551232]
[1758612037345,0.0002,4212.3,4212.2,20.36111232]
[1758612038056,0.691,4212.3,4212.2,16.87405631]
[1758612040823,0.0002,4212.3,4212.2,16.87405631]
[1758612042362,0.0002,4212.3,4212.2,16.99245631]
[1758612043051,0.691,4212.3,4212.2,16.99245631]
[1758612043655,0.0002,4212.3,4212.2,16.99245631]
[1758612044556,0.691,4212.3,4212.2,16.99245631]
[1758612045840,0.0002,4212.3,4212.2,16.99245631]
[1758612047210,0.0002,4212.3,4212.2,18.92951232]
[1758612047385,0.0002,4212.3,4212.2,19.16341232]
[1758612048064,0.0002,4212.3,4212.2,18.92951232]
[1758612048264,0.0002,4212.3,4212.2,19.51541232]
[1758612049586,0.0002,4212.3,4212.2,19.16341232]
[1758612049778,0.0002,4212.3,4212.2,18.92951232]
[1758612050284,0.0004,4212.8,4212.7,2.37377453]
[1758612050855,0.7121,4212.8,4212.7,16.87377453]
[1758612051268,0.93367551,4212.8,4212.7,16.87377453]
[1758612051572,0.7121,4212.8,4212.7,16.87377453]
[1758612052193,0.0004,4212.8,4212.7,16.87377453]
[1758612052583,0.2494,4212.8,4212.7,16.87377453]
[1758612052773,0.0004,4212.8,4212.7,16.87377453]
[1758612052979,0.7121,4212.8,4212.7,16.87377453]
[1758612054325,0.0004,4212.8,4212.7,17.84064304]
[1758612054472,0.0004,4212.8,4212.7,18.42654304]
[1758612054673,0.0004,4212.8,4212.7,19.21854304]
[1758612055088,0.0004,4212.8,4212.7,22.21854304]
[1758612055375,1e-08,4213.2,4213.0,0.792]
[1758612055581,1e-08,4213.2,4212.9,2.37366184]